fUSD/lending_fUSD_20241122
["ID","MTS","AMOUNT","RATE_DAILY","PERIOD"]
[343034818,1732300234775,-500.0,0.00081129,120]
[343034819,1732300234785,-500.0,0.00081129,120]
[343034820,1732300234794,-500.0,0.00081129,120]
[343034821,1732300234804,-500.0,0.00081129,120]
[343034822,1732300234813,-500.0,0.00081129,120]
[343034823,1732300234823,-500.0,0.00081129,120]
[343034824,1732300234833,-543.80364792,0.00081129,120]
[343034825,1732300234842,-500.0,0.00081129,120]
[343034826,1732300234852,-500.0,0.00081129,120]
[343034827,1732300234861,-500.0,0.00081129,120]
[343034828,1732300234871,-573.4487777,0.00081129,120]
[343034829,1732300234884,-500.0,0.00081129,120]
[343034830,1732300234893,-500.0,0.00081129,120]
[343034831,1732300234902,-500.0,0.00081129,7]
[343034832,1732300234911,-500.0,0.00081129,120]
[343034833,1732300234922,-500.0,0.00081129,120]
[343034834,1732300234931,-500.0,0.00081129,120]
[343034835,1732300234941,-500.0,0.00081129,120]
[343034836,1732300234950,-1609.7,0.00081129,120]
[343034837,1732300234959,-500.0,0.00081129,120]
[343034838,1732300234970,-500.0,0.00081129,120]
[343034839,1732300234980,-570.72488598,0.00081129,120]
[343034840,1732300234989,-500.0,0.00081129,120]
[343034841,1732300235001,-500.0,0.00081129,120]
[343034842,1732300235010,-549.0868043,0.00081129,120]
[343034843,1732300235020,-1335.46,0.00081129,120]
[343034844,1732300235029,-500.0,0.00081129,120]
[343034845,1732300235039,-500.0,0.00081129,120]
[343034846,1732300235048,-532.69669786,0.00081129,120]
[343034847,1732300235059,-500.0,0.00081129,120]
[343034848,1732300235068,-500.45696176,0.00081129,120]
[343034849,1732300235078,-3631.48,0.00081129,120]
[343034850,1732300235087,-500.0,0.00081129,120]
[343034851,1732300235097,-540.3644278,0.00081129,120]
[343034852,1732300235106,-500.0,0.00081129,120]
[343034853,1732300235114,-6598.49,0.00081129,120]
[343034854,1732300235123,-501.06297619,0.00081129,120]
[343034855,1732300235131,-500.0,0.00081129,120]
[343034856,1732300235140,-152.59,0.00081366,2]
[343034857,1732300235151,-1849.6058,0.00081375,2]
[343034858,1732300235159,-24371.601149,0.0008138,11]
[343034859,1732300235168,-24371.601149,0.0008139,11]
[343034860,1732300235177,-19997.544099,0.0008139,9]
[343034861,1732300235186,-500.0,0.00081399,120]
[343034862,1732300235195,-397.07316366,0.00081399,120]
[343034863,1732300235205,-3475.96,0.00081399,120]
[343034864,1732300235215,-500.0,0.00081399,120]
[343034865,1732300235224,-500.0,0.00081399,120]
[343034866,1732300235235,-1247.45,0.00081399,120]
[343034867,1732300235246,-479.655,0.00081399,120]
[343034868,1732300235256,-50000.0,0.000814,120]
[343034869,1732300235266,-19997.544099,0.00081445,9]
[343034870,1732300235276,-24371.601149,0.00081455,11]
[343034871,1732300235285,-500.0,0.00081464,120]
[343034872,1732300235295,-500.0,0.00081464,120]
[343034873,1732300235304,-500.0,0.00081464,120]
[343034874,1732300235313,-24371.601149,0.00081465,11]
[343034875,1732300235323,-19997.544099,0.00081465,9]
[343034876,1732300235332,-821.4512,0.00081475,120]
[343034877,1732300235342,-45435.3716,0.00081475,120]
[343034878,1732300235352,-19997.544099,0.00081545,9]
[343034879,1732300235362,-19997.544099,0.00081554,9]
[343034880,1732300235371,-24371.601149,0.00081555,11]
[343034881,1732300235379,-19997.544099,0.00081555,9]
[343034882,1732300235389,-24371.601149,0.00081564,11]
[343034883,1732300235399,-19997.544099,0.00081564,9]
[343034884,1732300235408,-482.12700461,0.00081564,120]
[343034885,1732300235417,-48743.2022981,0.00081565,11]
[343034886,1732300235427,-48312.89764658,0.00081565,9]
[343034887,1732300235443,-11679.73465042,0.00081565,9]
[343034888,1732300235453,-194.86975502,0.00081565,120]
[343034889,1732300235463,-500.0,0.00081573,15]
[343034890,1732300235472,-500.0,0.00081574,120]
[343034891,1732300235482,-390.77644276,0.00081574,120]
[343034892,1732300235491,-500.14001262,0.00081574,120]
[343034893,1732300235508,-500.0,0.00081574,120]
[343034894,1732300235517,-501.45761554,0.00081574,120]
[343034895,1732300235527,-500.0,0.00081574,120]
[343034896,1732300235537,-500.0,0.00081574,120]
[343034897,1732300235546,-500.0,0.00081574,120]
[343034898,1732300235556,-500.0,0.00081574,120]
[343034899,1732300235565,-500.0,0.00081574,120]
[343034900,1732300235575,-500.0,0.00081574,120]
[343034901,1732300235584,-500.0,0.00081574,120]
[343034902,1732300235593,-500.0,0.00081574,21]
[343034903,1732300235602,-2258.62,0.00081574,120]
[343034904,1732300235611,-501.10846708,0.00081574,120]
[343034905,1732300235620,-500.0,0.00081574,120]
[343034906,1732300235630,-500.0,0.00081574,120]
[343034907,1732300235640,-500.0,0.00081574,120]
[343034908,1732300235649,-2982.15,0.00081574,120]
[343034909,1732300235659,-657.81961902,0.00081574,120]
[343034910,1732300235668,-3475.96,0.00081574,120]
[343034911,1732300235677,-500.0,0.00081574,120]
[343034912,1732300235687,-467.44,0.00081574,120]
[343034913,1732300235696,-1138.42,0.00081574,120]
[343034914,1732300235705,-500.0,0.00081574,120]
[343034915,1732300235714,-189.21,0.00081574,120]
[343034916,1732300235723,-1247.45,0.00081574,120]
[343034917,1732300235731,-628.98,0.00081574,120]
[343034918,1732300235740,-500.0,0.00081574,120]
[343034919,1732300235751,-500.0,0.00081574,120]
[343034920,1732300235761,-66638.4833,0.00081575,120]
[343034921,1732300235770,-35248.1572,0.00081575,120]
[343034922,1732300235779,-2000.0,0.00081575,60]
[343034923,1732300235789,-246.5345,0.00081575,120]
[343034924,1732300235798,-1000.0,0.00081575,30]
[343034925,1732300235808,-19997.544099,0.00081627,9]
[343034926,1732300235821,-24371.601149,0.00081628,11]
[343034927,1732300235830,-24371.601149,0.00081637,11]
[343034928,1732300235840,-19997.544099,0.00081637,9]
[343034929,1732300235850,-168.0,0.00081647,120]
[343034930,1732300235859,-500.0,0.00081647,120]
[343034931,1732300235868,-500.0,0.00081647,120]
[343034932,1732300235877,-500.0,0.00081647,120]
[343034933,1732300235890,-500.0,0.00081647,120]
[343034934,1732300235899,-500.0,0.00081647,120]
[343034935,1732300235908,-500.0,0.00081647,120]
[343034936,1732300235917,-534.0615338,0.00081647,120]
[343034937,1732300235927,-504.0248002,0.00081647,120]
[343034938,1732300235936,-500.0,0.00081647,120]
[343034939,1732300235946,-500.0,0.00081647,120]
[343034940,1732300235955,-505.6387476,0.00081647,120]
[343034941,1732300235965,-500.0,0.00081647,120]
[343034942,1732300235974,-500.0,0.00081647,120]
[343034943,1732300235983,-500.0,0.00081647,120]
[343034944,1732300235994,-500.0,0.00081647,120]
[343034945,1732300236003,-500.0,0.00081647,120]
[343034946,1732300236013,-518.46263677,0.00081647,120]
[343034947,1732300236022,-500.0,0.00081647,120]
[343034948,1732300236032,-500.0,0.00081647,120]
[343034949,1732300236041,-500.0,0.00081647,120]
[343034950,1732300236052,-500.0,0.00081647,120]
[343034951,1732300236062,-500.0,0.00081647,120]
[343034952,1732300236071,-625.08667702,0.00081647,120]
[343034953,1732300236082,-500.0,0.00081647,120]
[343034954,1732300236091,-500.0,0.00081647,120]
[343034955,1732300236101,-500.0,0.00081647,120]
[343034956,1732300236110,-500.0,0.00081647,120]
[343034957,1732300236119,-500.0,0.00081647,120]
[343034958,1732300236128,-500.0,0.00081647,120]
[343034959,1732300236137,-500.0,0.00081647,120]
[343034960,1732300236147,-500.0,0.00081647,120]
[343034961,1732300236157,-500.0,0.00081647,120]
[343034962,1732300236167,-500.0,0.00081647,120]
[343034963,1732300236266,-500.0,0.00081647,120]
[343034964,1732300236277,-500.0,0.00081647,120]
[343034965,1732300236287,-500.0,0.00081647,120]
[343034966,1732300236297,-500.0,0.00081647,120]
[343034967,1732300236307,-515.49397384,0.00081647,120]
[343034968,1732300236316,-528.72389852,0.00081647,120]
[343034969,1732300236326,-500.0,0.00081647,120]
[343034970,1732300236335,-500.0,0.00081647,120]
[343034971,1732300236345,-215.96106162,0.00081647,120]
[343034972,1732300236356,-500.0,0.00081647,120]
[343034973,1732300236365,-500.0,0.00081647,120]
[343034974,1732300236375,-500.0,0.00081647,120]
[343034975,1732300236384,-500.0,0.00081647,120]
[343034976,1732300236394,-500.0,0.00081647,120]
[343034977,1732300236403,-500.0,0.00081647,120]
[343034978,1732300236413,-517.04903469,0.00081647,120]
[343034979,1732300236423,-500.0,0.00081647,120]
[343034980,1732300236432,-500.0,0.00081647,120]
[343034981,1732300236441,-2145.04,0.00081647,120]
[343034982,1732300236451,-500.0,0.00081647,120]
[343034983,1732300236461,-500.0,0.00081647,120]
[343034984,1732300236471,-500.0,0.00081647,120]
[343034985,1732300236481,-500.0,0.00081647,120]
[343034986,1732300236491,-500.0,0.00081647,120]
[343034987,1732300236501,-500.0,0.00081647,120]
[343034988,1732300236511,-916.84,0.00081647,120]
[343034989,1732300236520,-524.60234966,0.00081647,120]
[343034990,1732300236530,-500.0,0.00081647,120]
[343034991,1732300236539,-500.0,0.00081647,120]
[343034992,1732300236549,-500.0,0.00081647,2]
[343034993,1732300236559,-457.29442582,0.00081647,120]
[343034994,1732300236569,-267.20771499,0.00081647,120]
[343034995,1732300236578,-500.0,0.00081647,120]
[343034996,1732300236587,-500.0,0.00081647,120]
[343034997,1732300236597,-500.0,0.00081647,120]
[343034998,1732300236606,-500.0,0.00081647,120]
[343034999,1732300236616,-1420.01,0.00081647,120]
[343035000,1732300236625,-500.0,0.00081647,120]
[343035001,1732300236635,-500.0,0.00081647,120]
[343035002,1732300236644,-500.0,0.00081647,120]
[343035003,1732300236653,-500.0,0.00081647,120]
[343035004,1732300236663,-500.0,0.00081647,120]
[343035005,1732300236672,-500.0,0.00081647,120]
[343035006,1732300236681,-2749.16,0.00081647,120]
[343035007,1732300236691,-500.0,0.00081647,120]
[343035008,1732300236700,-1636.59,0.00081647,120]
[343035009,1732300236709,-500.0,0.00081647,120]
[343035010,1732300236720,-504.13138103,0.00081647,120]
[343035011,1732300236729,-500.0,0.00081647,120]
[343035012,1732300236738,-500.0,0.00081647,120]
[343035013,1732300236749,-1000.0,0.00081647,120]
[343035014,1732300236759,-500.0,0.00081647,120]
[343035015,1732300236768,-500.0,0.00081647,120]
[343035016,1732300236778,-500.0,0.00081647,120]
[343035017,1732300236788,-500.0,0.00081647,120]
[343035018,1732300236798,-500.0,0.00081647,120]
[343035019,1732300236807,-500.0,0.00081647,120]
[343035020,1732300236817,-195.60676594,0.00081647,120]
[343035021,1732300236826,-570.50748382,0.00081647,120]
[343035022,1732300236836,-500.0,0.00081647,120]
[343035023,1732300236846,-500.0,0.00081647,120]
[343035024,1732300236855,-500.0,0.00081647,120]
[343035025,1732300236865,-500.0,0.00081647,7]
[343035026,1732300236875,-500.0,0.00081647,120]
[343035027,1732300236886,-500.0,0.00081647,120]
[343035028,1732300236897,-647.17054816,0.00081647,120]
[343035029,1732300236906,-500.0,0.00081647,120]
[343035030,1732300236916,-1609.7,0.00081647,120]
[343035031,1732300236927,-502.63210528,0.00081647,120]
[343035032,1732300236936,-500.0,0.00081647,120]
[343035033,1732300236946,-173.60008278,0.00081647,120]
[343035034,1732300236955,-500.0,0.00081647,120]
[343035035,1732300236966,-1335.46,0.00081647,120]
[343035036,1732300236976,-200.40532361,0.00081647,120]
[343035037,1732300236986,-3631.48,0.00081647,120]
[343035038,1732300236997,-500.0,0.00081647,120]
[343035039,1732300237008,-6598.49,0.00081647,120]
[343035040,1732300237018,-4173.0,0.00081648,117]
[343035041,1732300237028,-1100.0,0.000817,29]
[343035042,1732300237038,-2300.0,0.000818,29]
[343035043,1732300237048,-3400.0,0.000819,29]
[343035044,1732300237063,-433.48,0.00081941,60]
[343035045,1732300237072,-504.7,0.00081978,60]
[343035046,1732300237082,-2702.93,0.00081999,120]
[343035047,1732300237091,-500.0,0.00081999,120]
[343035048,1732300237101,-500.0,0.00081999,120]
[343035049,1732300237110,-500.0,0.00081999,120]
[343035050,1732300237120,-500.0,0.00081999,120]
[343035051,1732300237130,-502.07896371,0.00081999,120]
[343035052,1732300237139,-500.0,0.00081999,120]
[343035053,1732300237149,-500.0,0.00081999,120]
[343035054,1732300237159,-500.0,0.00081999,120]
[343035055,1732300237168,-500.0,0.00081999,120]
[343035056,1732300237180,-500.0,0.00081999,120]
[343035057,1732300237189,-408.51,0.00081999,120]
[343035058,1732300237198,-548.66597698,0.00081999,120]
[343035059,1732300237207,-500.0,0.00081999,120]
[343035060,1732300237217,-500.0,0.00081999,120]
[343035061,1732300237225,-500.0,0.00081999,120]
[343035062,1732300237235,-500.0,0.00081999,120]
[343035063,1732300237245,-508.94455217,0.00081999,120]
[343035064,1732300237254,-278.44751242,0.00082091,67]
[343035065,1732300237263,-19997.544099,0.0008214,9]
[343035066,1732300237272,-24371.601149,0.00082151,11]
[343035067,1732300237281,-39995.088198,0.00082151,9]
[343035068,1732300237289,-97486.4045962,0.00082161,11]
[343035069,1732300237299,-59992.632297,0.00082161,9]
[343035070,1732300237308,-3475.96,0.0008217,120]
[343035071,1732300237318,-500.0,0.0008217,120]
[343035072,1732300237326,-1247.45,0.0008217,120]
[343035073,1732300237335,-97486.4045962,0.00082171,11]
[343035074,1732300237344,-500.0,0.00082173,7]
[343035075,1732300237353,-500.0,0.00082173,15]
[343035076,1732300237362,-500.0,0.00082173,2]
[343035077,1732300237372,-500.0,0.0008218,120]
[343035078,1732300237381,-500.0,0.0008218,120]
[343035079,1732300237391,-383.77980501,0.0008218,21]
[343035080,1732300237400,-2258.62,0.0008218,120]
[343035081,1732300237409,-500.0,0.0008218,120]
[343035082,1732300237419,-2982.15,0.0008218,120]
[343035083,1732300237428,-3475.96,0.0008218,120]
[343035084,1732300237437,-3475.96,0.0008218,120]
[343035085,1732300237446,-500.0,0.0008218,120]
[343035086,1732300237456,-1138.42,0.0008218,120]
[343035087,1732300237465,-500.0,0.0008218,120]
[343035088,1732300237475,-500.0,0.0008218,120]
[343035089,1732300237484,-1247.45,0.0008218,120]
[343035090,1732300237493,-1247.45,0.0008218,120]
[343035091,1732300237503,-628.98,0.0008218,120]
[343035092,1732300237512,-300.0,0.0008218,120]
[343035093,1732300237522,-39995.088198,0.0008218,9]
[343035094,1732300237531,-728.16748217,0.00082181,9]
[343035097,1732300237643,-13898.01223347,0.00082181,9]
[343035103,1732300240877,-1974.9,0.00082181,9]
[343035104,1732300241020,-1000.0,0.00080529,120]
[343035105,1732300241030,-500.0,0.00081128,120]
[343035106,1732300241039,-579.7,0.00081464,120]
[343035107,1732300241048,-306.33825594,0.00082181,9]
[343035108,1732300241060,-1324.98326,0.00082181,9]
[343035109,1732300241073,-5266.65540425,0.00082181,9]
[343035110,1732300241084,-4982.59588157,0.00082181,9]
[343035111,1732300241097,-6720.20786749,0.00082181,9]
[343035112,1732300241109,-1084.09998,0.00082181,9]
[343035113,1732300241120,-283.45840643,0.00082181,9]
[343035114,1732300241132,-7754.39853381,0.00082181,9]
[343035115,1732300241144,-3283.17176436,0.00082181,9]
[343035116,1732300241167,-52380.73142561,0.00082181,9]
[343035117,1732300241177,-168.0,0.0008219,120]
[343035118,1732300241187,-500.0,0.0008219,120]
[343035119,1732300241196,-500.0,0.0008219,120]
[343035120,1732300241205,-500.0,0.0008219,120]
[343035121,1732300241215,-2702.93,0.0008219,120]
[343035122,1732300241224,-500.0,0.0008219,120]
[343035123,1732300241233,-202.89,0.0008219,120]
[343035124,1732300241242,-500.0,0.0008219,120]
[343035125,1732300241255,-500.0,0.0008219,120]
[343035126,1732300241264,-500.0,0.0008219,120]
[343035127,1732300241274,-276.53,0.0008219,120]
[343035128,1732300241283,-500.0,0.0008219,120]
[343035129,1732300241292,-562.87,0.0008219,120]
[343035130,1732300241302,-500.0,0.0008219,120]
[343035131,1732300241311,-500.0,0.0008219,120]
[343035132,1732300241320,-500.0,0.0008219,120]
[343035133,1732300241329,-500.0,0.0008219,120]
[343035134,1732300241338,-500.0,0.0008219,120]
[343035135,1732300241347,-500.0,0.0008219,120]
[343035136,1732300241357,-502.58376319,0.0008219,120]
[343035137,1732300241366,-504.96508329,0.0008219,120]
[343035138,1732300241375,-500.0,0.0008219,120]
[343035139,1732300241385,-514.90481797,0.0008219,120]
[343035140,1732300241394,-502.34738941,0.0008219,120]
[343035141,1732300241403,-506.37573002,0.0008219,120]
[343035142,1732300241413,-500.0,0.0008219,120]
[343035143,1732300241422,-498.80576303,0.0008219,120]
[343035144,1732300241431,-500.0,0.0008219,120]
[343035145,1732300241441,-500.0,0.0008219,120]
[343035146,1732300241450,-503.81816152,0.0008219,120]
[343035147,1732300241459,-500.0,0.0008219,120]
[343035148,1732300241468,-500.0,0.0008219,120]
[343035149,1732300241478,-519.70216327,0.0008219,120]
[343035150,1732300241487,-500.0,0.0008219,120]
[343035151,1732300241496,-500.0,0.0008219,120]
[343035152,1732300241509,-500.0,0.0008219,120]
[343035153,1732300241518,-500.0,0.0008219,120]
[343035154,1732300241528,-500.0,0.0008219,120]
[343035155,1732300241537,-500.0,0.0008219,120]
[343035156,1732300241547,-500.0,0.0008219,120]
[343035157,1732300241556,-500.0,0.0008219,120]
[343035158,1732300241565,-500.0,0.0008219,120]
[343035159,1732300241575,-500.0,0.0008219,120]
[343035160,1732300241584,-616.08,0.0008219,120]
[343035161,1732300241592,-500.0,0.0008219,120]
[343035162,1732300241602,-500.0,0.0008219,120]
[343035163,1732300241611,-500.0,0.0008219,120]
[343035164,1732300241621,-281.70339833,0.0008219,120]
[343035165,1732300241630,-500.0,0.0008219,120]
[343035166,1732300241639,-500.0,0.0008219,120]
[343035167,1732300241648,-337.25577531,0.0008219,120]
[343035168,1732300241657,-500.14911353,0.0008219,120]
[343035169,1732300241668,-2145.04,0.0008219,120]
[343035170,1732300241677,-500.3968854,0.0008219,120]
[343035171,1732300241687,-500.0,0.0008219,120]
[343035172,1732300241696,-500.95907119,0.0008219,120]
[343035173,1732300241705,-916.84,0.0008219,120]
[343035174,1732300241714,-500.0,0.0008219,120]
[343035175,1732300241723,-503.29622775,0.0008219,120]
[343035176,1732300241733,-500.0,0.0008219,120]
[343035177,1732300241743,-353.6924652,0.0008219,120]
[343035178,1732300241755,-2258.62,0.0008219,120]
[343035179,1732300241765,-500.63430955,0.0008219,120]
[343035180,1732300241775,-346.2760207,0.0008219,120]
[343035181,1732300241784,-500.0,0.0008219,120]
[343035182,1732300241794,-500.0,0.0008219,120]
[343035183,1732300241803,-500.0,0.0008219,120]
[343035184,1732300241813,-500.0,0.0008219,2]
[343035185,1732300241823,-503.76525181,0.0008219,120]
[343035186,1732300241832,-500.0,0.0008219,120]
[343035187,1732300241842,-502.04405181,0.0008219,120]
[343035188,1732300241851,-500.0,0.0008219,120]
[343035189,1732300241861,-501.82024198,0.0008219,120]
[343035190,1732300241870,-500.0,0.0008219,120]
[343035191,1732300241880,-500.0,0.0008219,120]
[343035192,1732300241893,-500.0,0.0008219,120]
[343035193,1732300241903,-500.0,0.0008219,120]
[343035194,1732300241912,-500.0,0.0008219,120]
[343035195,1732300241923,-500.8458044,0.0008219,120]
[343035196,1732300241933,-500.0,0.0008219,120]
[343035197,1732300241943,-500.0,0.0008219,120]
[343035198,1732300241953,-501.09025237,0.0008219,120]
[343035199,1732300241963,-2982.15,0.0008219,120]
[343035200,1732300241974,-500.0,0.0008219,120]
[343035201,1732300241984,-500.0,0.0008219,120]
[343035202,1732300241994,-500.0,0.0008219,120]
[343035203,1732300242007,-500.0,0.0008219,120]
[343035204,1732300242017,-500.0,0.0008219,120]
[343035205,1732300242027,-503.6100214,0.0008219,120]
[343035206,1732300242037,-502.71927965,0.0008219,120]
[343035207,1732300242047,-500.0,0.0008219,120]
[343035208,1732300242056,-505.41229182,0.0008219,120]
[343035209,1732300242065,-500.0,0.0008219,120]
[343035210,1732300242075,-500.48111774,0.0008219,120]
[343035211,1732300242084,-500.0,0.0008219,120]
[343035212,1732300242095,-633.70588435,0.0008219,120]
[343035213,1732300242104,-502.90375385,0.0008219,120]
[343035214,1732300242114,-500.0,0.0008219,120]
[343035215,1732300242123,-500.0,0.0008219,120]
[343035216,1732300242132,-502.65378135,0.0008219,120]
[343035217,1732300242143,-500.0,0.0008219,120]
[343035218,1732300242154,-1420.01,0.0008219,120]
[343035219,1732300242163,-500.0,0.0008219,120]
[343035220,1732300242173,-536.00286937,0.0008219,6]
[343035221,1732300242183,-500.0,0.0008219,120]
[343035222,1732300242193,-501.85965731,0.0008219,120]
[343035223,1732300242203,-500.0,0.0008219,120]
[343035224,1732300242213,-500.0,0.0008219,120]
[343035225,1732300242222,-500.0,0.0008219,120]
[343035226,1732300242232,-500.0,0.0008219,120]
[343035227,1732300242240,-500.0,0.0008219,120]
[343035228,1732300242249,-1716.42,0.0008219,120]
[343035229,1732300242258,-500.0,0.0008219,120]
[343035230,1732300242268,-500.0,0.0008219,120]
[343035231,1732300242278,-500.0,0.0008219,120]
[343035232,1732300242288,-549.96,0.0008219,120]
[343035233,1732300242298,-503.57207169,0.0008219,120]
[343035234,1732300242307,-500.0,0.0008219,120]
[343035235,1732300242317,-500.0,0.0008219,120]
[343035236,1732300242327,-500.0,0.0008219,120]
[343035237,1732300242336,-503.79591723,0.0008219,30]
[343035238,1732300242346,-501.22788987,0.0008219,90]
[343035239,1732300242356,-500.0,0.0008219,120]
[343035240,1732300242366,-2749.16,0.0008219,120]
[343035241,1732300242375,-500.0,0.0008219,120]
[343035242,1732300242384,-203.1677242,0.0008219,120]
[343035243,1732300242394,-500.0,0.0008219,120]
[343035244,1732300242404,-500.0,0.0008219,120]
[343035245,1732300242414,-500.0,0.0008219,120]
[343035246,1732300242423,-500.0,0.0008219,120]
[343035247,1732300242433,-1636.59,0.0008219,120]
[343035248,1732300242442,-503.00089094,0.0008219,120]
[343035249,1732300242453,-502.517801,0.0008219,120]
[343035250,1732300242462,-164.17534429,0.0008219,120]
[343035251,1732300242472,-500.0,0.0008219,120]
[343035252,1732300242482,-526.25003675,0.0008219,120]
[343035253,1732300242492,-500.0,0.0008219,120]
[343035254,1732300242503,-500.0,0.0008219,120]
[343035255,1732300242512,-500.0,0.0008219,120]
[343035256,1732300242522,-612.99064475,0.0008219,120]
[343035257,1732300242531,-507.49555484,0.0008219,120]
[343035258,1732300242541,-1000.0,0.0008219,120]
[343035259,1732300242551,-623.0,0.0008219,120]
[343035260,1732300242561,-500.0,0.0008219,120]
[343035261,1732300242571,-500.0,0.0008219,120]
[343035262,1732300242580,-505.75065644,0.0008219,120]
[343035263,1732300242590,-508.89497578,0.0008219,120]
[343035264,1732300242599,-500.0,0.0008219,120]
[343035265,1732300242610,-502.24905371,0.0008219,120]
[343035266,1732300242620,-500.0,0.0008219,120]
[343035267,1732300242629,-3475.96,0.0008219,120]
[343035268,1732300242639,-505.64580654,0.0008219,60]
[343035269,1732300242648,-500.0,0.0008219,120]
[343035270,1732300242657,-1000.0,0.0008219,5]
[343035271,1732300242667,-503.12044767,0.0008219,120]
[343035272,1732300242678,-500.0,0.0008219,120]
[343035273,1732300242688,-1170.74835936,0.0008219,30]
[343035274,1732300242698,-1138.42,0.0008219,120]
[343035275,1732300242707,-500.0,0.0008219,7]
[343035276,1732300242717,-500.0,0.0008219,7]
[343035277,1732300242728,-502.22320956,0.0008219,120]
[343035278,1732300242738,-500.0,0.0008219,120]
[343035279,1732300242747,-504.60828363,0.0008219,120]
[343035280,1732300242760,-500.0,0.0008219,120]
[343035281,1732300242769,-580.84,0.0008219,120]
[343035282,1732300242778,-500.0,0.0008219,120]
[343035283,1732300242787,-464.96093052,0.0008219,120]
[343035284,1732300242797,-500.69449392,0.0008219,120]
[343035285,1732300242807,-1609.7,0.0008219,120]
[343035286,1732300242816,-1247.45,0.0008219,120]
[343035287,1732300242825,-500.0,0.0008219,120]
[343035288,1732300242835,-503.3536924,0.0008219,120]
[343035290,1732300242844,-502.69332394,0.0008219,120]
[343035292,1732300242855,-504.81166256,0.0008219,120]
[343035293,1732300242866,-503.2325263,0.0008219,120]
[343035294,1732300242876,-501.31733292,0.0008219,120]
[343035296,1732300242887,-500.0,0.0008219,120]
[343035297,1732300242901,-500.0,0.0008219,120]
[343035298,1732300242912,-543.54485724,0.0008219,120]
[343035299,1732300242921,-500.0,0.0008219,120]
[343035300,1732300242930,-500.0,0.0008219,120]
[343035301,1732300242940,-211.90722482,0.0008219,10]
[343035303,1732300242949,-500.0,0.0008219,120]
[343035305,1732300243052,-1335.46,0.0008219,120]
[343035306,1732300243063,-503.15451561,0.0008219,120]
[343035307,1732300243073,-501.12383111,0.0008219,120]
[343035308,1732300243083,-500.0,0.0008219,120]
[343035309,1732300243093,-628.98,0.0008219,120]
[343035310,1732300243102,-3631.48,0.0008219,120]
[343035311,1732300243112,-500.0,0.0008219,60]
[343035312,1732300243122,-508.19849515,0.0008219,120]
[343035313,1732300243132,-500.0,0.0008219,120]
[343035314,1732300243141,-500.0,0.0008219,120]
[343035315,1732300243151,-503.31687203,0.0008219,120]
[343035316,1732300243161,-500.0,0.0008219,120]
[343035317,1732300243171,-6598.49,0.0008219,120]
[343035318,1732300243180,-500.0,0.0008219,120]
[343035319,1732300243190,-502.09253347,0.0008219,120]
[343035320,1732300243199,-502.34367184,0.0008219,120]
[343035321,1732300243209,-522.28984063,0.0008219,120]
[343035322,1732300243219,-500.0,0.0008219,120]
[343035323,1732300243228,-500.0,0.0008219,120]
[343035324,1732300243238,-500.0,0.00082191,120]
[343035325,1732300243248,-500.0,0.00082191,120]
[343035326,1732300243259,-502.45700013,0.00082191,120]
[343035327,1732300243268,-500.0,0.00082191,120]
[343035328,1732300243278,-500.0,0.00082191,120]
[343035329,1732300243287,-501.18102023,0.00082191,120]